fUSD/lending_fUSD_20240423
["ID","MTS","AMOUNT","RATE_DAILY","PERIOD"]
[323324153,1713893445938,-165.28471919,0.00012261,2]
[323324154,1713893445947,-500.0,0.00012261,2]
[323324155,1713893445957,-970.96,0.00012261,2]
[323324156,1713893445966,-1462.49,0.00012261,2]
[323324157,1713893445976,-500.0,0.00012261,2]
[323324158,1713893445985,-695.7,0.00012261,2]
[323324159,1713893445995,-1678.17395512,0.00012261,2]
[323324160,1713893446008,-83.24604488,0.00012261,2]
[323324161,1713893446017,-563.4,0.00012261,2]
[323324162,1713893446027,-787.5,0.00012261,2]
[323324163,1713893446037,-569.71,0.00012261,2]
[323324164,1713893446046,-546.48,0.00012261,2]
[323324165,1713893446055,-500.0,0.00012261,2]
[323324166,1713893446065,-500.0,0.00012261,2]
[323324167,1713893446075,-500.0,0.00012261,2]
[323324168,1713893446084,-696.69,0.00012261,2]
[323324169,1713893446094,-434.34395512,0.00012261,2]
[323324170,1713893446131,-412.37604488,0.00012261,2]
[323324171,1713893446141,-647.39,0.00012261,2]
[323324172,1713893446151,-500.0,0.00012261,2]
[323324173,1713893446160,-416.29001741,0.00012261,2]
[323324174,1713893446602,-301.67998259,0.00012261,2]
[323324175,1713893446612,-2975.53,0.00012261,2]
[323324176,1713893446622,-500.0,0.00012261,2]
[323324177,1713893446631,-506.35,0.00012261,2]
[323324178,1713893446641,-500.0,0.00012261,2]
[323324179,1713893446650,-500.0,0.00012261,2]
[323324180,1713893446660,-500.0,0.00012261,2]
[323324181,1713893446669,-162.72,0.00012261,2]
[323324182,1713893446678,-500.0,0.00012261,2]
[323324183,1713893446688,-679.55,0.00012261,2]
[323324185,1713893446697,-2017.9219412,0.00012261,2]
[323324187,1713893446709,-1037.17902075,0.00012261,2]
[323324189,1713893446721,-1204.17105637,0.00012261,2]
[323324190,1713893446964,-586.17263117,0.00011731,2]
[323324191,1713893446974,-1642.4174386,0.00012016,2]
[323324193,1713893446984,-2828.18798168,0.00012261,2]
[323324195,1713893446995,-631.3,0.00012261,2]
[323324196,1713893447004,-500.0,0.00012261,2]
[323324197,1713893447014,-500.0,0.00012261,2]
[323324198,1713893447023,-553.39,0.00012261,2]
[323324199,1713893447032,-500.0,0.00012261,2]
[323324200,1713893447041,-500.0,0.00012265,2]
[323324201,1713893447050,-469.86479263,0.00012298,2]
[323324203,1713893447059,-882.0,0.000123,2]
[323324204,1713893447068,-455.78271799,0.000123,2]
[323324205,1713893447078,-5862.57775177,0.000123,5]
[323324206,1713893447089,-585.22668101,0.000123,5]
[323324207,1713893447106,-4513.4492,0.000123,5]
[323324208,1713893447127,-549.42737991,0.000123,5]
[323324209,1713893447139,-500.0,0.000123,5]
[323324210,1713893447151,-557.58946633,0.000123,5]
[323324211,1713893447162,-322.51994525,0.000123,5]
[323324212,1713893447183,-19796.11065348,0.000123,5]
[323324213,1713893447203,-275.30956401,0.000123,5]
[323324214,1713893447214,-3067.79999999,0.000123,5]
[323324215,1713893447226,-630983.74449343,0.000123,5]
[323324216,1713893447235,-1000.0,0.0001236,2]
[323324217,1713893447244,-500.0,0.0001236,2]
[323324218,1713893447254,-207.22680324,0.00012379,2]
[323324219,1713893447263,-5845.67259112,0.00012379,2]
[323324220,1713893447272,-264.76405233,0.00012394,2]
[323324221,1713893447281,-238.67618,0.0001242,2]
[323324222,1713893447290,-549.0,0.00012438,2]
[323324223,1713893447300,-10000.0,0.00012439,2]
[323324224,1713893447309,-251.6194917,0.000125,2]
[323324225,1713893447319,-249.71,0.00012534,2]
[323324226,1713893447328,-176.64,0.00012534,2]
[323324227,1713893447337,-500.0,0.00012534,2]
[323324228,1713893447346,-500.0,0.00012534,2]
[323324229,1713893447355,-500.0,0.00012535,2]
[323324230,1713893447365,-500.0,0.00012535,2]
[323324231,1713893447374,-500.0,0.00012535,2]
[323324232,1713893447383,-500.0,0.00012535,2]
[323324233,1713893447393,-500.0,0.00012535,2]
[323324234,1713893447402,-500.0,0.00012535,2]
[323324235,1713893447411,-500.0,0.00012535,2]
[323324236,1713893447420,-594.58,0.00012535,2]
[323324237,1713893447430,-500.0,0.00012535,2]
[323324238,1713893447439,-278.97,0.00012535,2]
[323324239,1713893447448,-500.0,0.00012535,2]
[323324240,1713893447458,-500.0,0.00012535,2]
[323324241,1713893447467,-500.0,0.00012535,2]
[323324242,1713893447478,-500.0,0.00012535,2]
[323324243,1713893447487,-500.0,0.00012535,2]
[323324244,1713893447497,-500.0,0.00012535,2]
[323324245,1713893447506,-633.70880887,0.00012535,2]
[323324246,1713893447515,-500.0,0.00012535,2]
[323324247,1713893447525,-500.0,0.00012535,2]
[323324248,1713893447534,-500.0,0.00012535,2]
[323324249,1713893447544,-500.0,0.00012535,2]
[323324250,1713893447554,-500.0,0.00012535,2]
[323324251,1713893447563,-1060.5,0.00012535,2]
[323324252,1713893447572,-833.4,0.00012535,2]
[323324253,1713893447582,-500.0,0.00012535,2]
[323324254,1713893447591,-500.0,0.00012535,2]
[323324255,1713893447600,-8711.81,0.00012535,2]
[323324256,1713893447610,-500.0,0.00012535,2]
[323324257,1713893447620,-566.18,0.00012535,2]
[323324258,1713893447629,-500.0,0.00012535,2]
[323324259,1713893447638,-500.0,0.00012535,2]
[323324260,1713893447647,-1011.94,0.00012535,2]
[323324261,1713893447657,-500.0,0.00012535,2]
[323324262,1713893447667,-500.0,0.00012535,2]
[323324263,1713893447676,-382.23,0.00012535,2]
[323324264,1713893447686,-500.0,0.00012535,2]
[323324265,1713893447695,-500.0,0.00012535,2]
[323324266,1713893447704,-500.0,0.00012535,2]
[323324267,1713893447714,-500.0,0.00012535,2]
[323324268,1713893447723,-500.0,0.00012535,2]
[323324269,1713893447733,-500.0,0.00012535,2]
[323324270,1713893447743,-500.0,0.00012535,2]
[323324271,1713893447752,-500.0,0.00012535,2]
[323324272,1713893447762,-1324.99,0.00012535,2]
[323324273,1713893447770,-500.0,0.00012535,2]
[323324274,1713893447781,-500.0,0.00012535,2]
[323324275,1713893447790,-500.0,0.00012535,2]
[323324276,1713893447799,-500.0,0.00012535,2]
[323324277,1713893447808,-500.0,0.00012535,2]
[323324278,1713893447817,-1153.51,0.00012535,2]
[323324279,1713893447827,-500.0,0.00012535,2]
[323324280,1713893447837,-996.5,0.00012535,2]
[323324281,1713893447846,-500.0,0.00012535,2]
[323324282,1713893447855,-703.52,0.00012535,2]
[323324283,1713893447867,-500.0,0.00012535,2]
[323324284,1713893447877,-780.91,0.00012535,2]
[323324285,1713893447886,-500.0,0.00012535,2]
[323324286,1713893447896,-500.0,0.00012535,2]
[323324287,1713893447905,-500.0,0.00012535,2]
[323324288,1713893447914,-500.0,0.00012535,2]
[323324289,1713893447924,-243.69063429,0.00012535,2]
[323324290,1713893447933,-2430.07,0.00012535,2]
[323324291,1713893447942,-500.0,0.00012535,2]
[323324292,1713893447951,-500.0,0.00012535,2]
[323324293,1713893447961,-500.0,0.00012535,2]
[323324294,1713893447970,-773.33,0.00012535,2]
[323324295,1713893447979,-600.36,0.00012535,2]
[323324296,1713893447988,-1125.07,0.00012535,2]
[323324297,1713893447998,-500.0,0.00012535,2]
[323324298,1713893448007,-500.0,0.00012535,2]
[323324299,1713893448016,-500.0,0.00012535,2]
[323324300,1713893448026,-500.0,0.00012535,2]
[323324301,1713893448035,-1245.45,0.00012535,2]
[323324302,1713893448045,-526.47,0.00012535,2]
[323324303,1713893448054,-500.0,0.00012535,2]
[323324304,1713893448064,-2124.94,0.00012535,2]
[323324305,1713893448073,-500.0,0.00012535,2]
[323324306,1713893448082,-1934.59,0.00012535,2]
[323324307,1713893448092,-500.0,0.00012535,2]
[323324308,1713893448104,-1157.9,0.00012535,2]
[323324309,1713893448114,-500.0,0.00012535,2]
[323324310,1713893448124,-500.0,0.00012535,2]
[323324311,1713893448135,-500.0,0.00012535,2]
[323324312,1713893448145,-500.0,0.00012535,2]
[323324313,1713893448155,-677.89,0.00012535,2]
[323324314,1713893448164,-1741.31,0.00012535,2]
[323324315,1713893448173,-500.0,0.00012535,2]
[323324316,1713893448185,-500.0,0.00012535,2]
[323324317,1713893448195,-500.0,0.00012535,2]
[323324318,1713893448205,-500.0,0.00012535,2]
[323324319,1713893448216,-500.0,0.00012535,2]
[323324320,1713893448226,-500.0,0.00012535,2]
[323324321,1713893448236,-500.0,0.00012535,2]
[323324322,1713893448246,-970.96,0.00012535,2]
[323324323,1713893448257,-1462.49,0.00012535,2]
[323324324,1713893448267,-212.79,0.00012535,2]
[323324325,1713893448277,-695.7,0.00012535,2]
[323324326,1713893448288,-1761.42,0.00012535,2]
[323324327,1713893448298,-787.5,0.00012535,2]
[323324328,1713893448308,-563.4,0.00012535,2]
[323324329,1713893448317,-546.48,0.00012535,2]
[323324330,1713893448327,-500.0,0.00012535,2]
[323324331,1713893448337,-500.0,0.00012535,2]
[323324332,1713893448347,-500.0,0.00012535,2]
[323324333,1713893448356,-696.69,0.00012535,2]
[323324334,1713893448366,-846.72,0.00012535,2]
[323324335,1713893448375,-647.39,0.00012535,2]
[323324336,1713893448384,-500.0,0.00012535,2]
[323324337,1713893448393,-717.97,0.00012535,2]
[323324338,1713893448403,-2975.53,0.00012535,2]
[323324339,1713893448413,-500.0,0.00012535,2]
[323324340,1713893448423,-506.35,0.00012535,2]
[323324341,1713893448432,-500.0,0.00012535,2]
[323324342,1713893448442,-500.0,0.00012535,2]
[323324343,1713893448451,-500.0,0.00012535,2]
[323324344,1713893448461,-500.0,0.00012535,2]
[323324345,1713893448470,-679.55,0.00012535,2]
[323324346,1713893448481,-7087.46,0.00012535,2]
[323324347,1713893448490,-631.3,0.00012535,2]
[323324348,1713893448499,-500.0,0.00012535,2]
[323324349,1713893448508,-500.0,0.00012535,2]
[323324350,1713893448518,-553.39,0.00012535,2]
[323324351,1713893448529,-419.17819035,0.00012535,2]
[323324352,1713893448539,-500.0,0.00012539,2]
[323324353,1713893448550,-13183.63178861,0.0001259,2]
[323324354,1713893448560,-264.76405233,0.00012647,2]
[323324355,1713893448570,-155.0,0.00012652,2]
[323324356,1713893448579,-2441.44795968,0.00012653,2]
[323324357,1713893448589,-180.0,0.00012669,2]
[323324358,1713893448598,-500.0,0.00012723,2]
[323324359,1713893448608,-500.0,0.00012731,2]
[323324360,1713893448617,-500.0,0.0001274,2]
[323324361,1713893448627,-500.0,0.00012749,2]
[323324362,1713893448638,-500.0,0.00012758,2]
[323324363,1713893448647,-500.0,0.00012767,2]
[323324364,1713893448657,-500.0,0.00012775,2]
[323324365,1713893448666,-500.0,0.00012784,2]
[323324366,1713893448676,-500.0,0.00012793,2]
[323324367,1713893448686,-155.0,0.000128,2]
[323324368,1713893448697,-500.0,0.00012802,2]
[323324369,1713893448706,-500.0,0.00012808,2]
[323324370,1713893448716,-500.0,0.00012808,2]
[323324371,1713893448726,-500.0,0.00012809,2]
[323324372,1713893448737,-500.0,0.00012809,2]
[323324373,1713893448748,-500.0,0.00012809,2]
[323324374,1713893448758,-500.0,0.00012809,2]
[323324375,1713893448767,-500.0,0.00012809,2]
[323324376,1713893448776,-500.0,0.00012809,2]
[323324377,1713893448785,-500.0,0.00012809,2]
[323324378,1713893448795,-500.0,0.00012809,2]
[323324379,1713893448804,-500.0,0.00012809,2]
[323324380,1713893448815,-500.0,0.00012809,2]
[323324381,1713893448825,-500.0,0.00012809,2]
[323324382,1713893448834,-500.0,0.00012809,2]
[323324383,1713893448845,-500.0,0.00012809,2]
[323324384,1713893448854,-500.0,0.00012809,2]
[323324385,1713893448863,-500.0,0.00012809,2]
[323324386,1713893448873,-500.0,0.00012809,2]
[323324387,1713893448882,-500.0,0.00012809,2]
[323324388,1713893448891,-500.0,0.00012809,2]
[323324389,1713893448901,-500.0,0.00012809,2]
[323324390,1713893448910,-1060.5,0.00012809,2]
[323324391,1713893448919,-833.4,0.00012809,2]
[323324392,1713893448929,-500.0,0.00012809,2]
[323324393,1713893448939,-399.40630499,0.00012809,2]
[323324394,1713893448949,-8711.81,0.00012809,2]
[323324395,1713893448958,-500.0,0.00012809,2]
[323324396,1713893448967,-566.18,0.00012809,2]
[323324397,1713893448978,-500.0,0.00012809,2]
[323324398,1713893448987,-500.0,0.00012809,2]
[323324399,1713893448996,-1011.94,0.00012809,2]
[323324400,1713893449006,-500.0,0.00012809,2]
[323324401,1713893449016,-500.0,0.00012809,2]
[323324402,1713893449026,-500.0,0.00012809,2]
[323324403,1713893449034,-500.0,0.00012809,2]
[323324404,1713893449044,-500.0,0.00012809,2]
[323324405,1713893449054,-500.0,0.00012809,2]
[323324406,1713893449063,-500.0,0.00012809,2]
[323324407,1713893449073,-500.0,0.00012809,2]
[323324408,1713893449082,-500.0,0.00012809,2]
[323324409,1713893449093,-500.0,0.00012809,2]
[323324410,1713893449104,-1324.99,0.00012809,2]
[323324411,1713893449114,-500.0,0.00012809,2]
[323324412,1713893449123,-500.0,0.00012809,2]
[323324413,1713893449132,-500.0,0.00012809,2]
[323324414,1713893449143,-215.48456042,0.00012809,2]
[323324415,1713893449152,-500.0,0.00012809,2]
[323324416,1713893449162,-1153.51,0.00012809,2]
[323324417,1713893449171,-500.0,0.00012809,2]
[323324418,1713893449182,-996.5,0.00012809,2]
[323324419,1713893449191,-613.80201138,0.00012809,2]
[323324420,1713893449201,-703.52,0.00012809,2]
[323324421,1713893449211,-500.0,0.00012809,2]
[323324422,1713893449221,-780.91,0.00012809,2]
[323324423,1713893449231,-500.0,0.00012809,2]
[323324424,1713893449240,-500.0,0.00012809,2]
[323324425,1713893449250,-500.0,0.00012809,2]
[323324426,1713893449259,-500.0,0.00012809,2]
[323324427,1713893449269,-2430.07,0.00012809,2]
[323324428,1713893449279,-500.0,0.00012809,2]
[323324429,1713893449289,-500.0,0.00012809,2]
[323324430,1713893449298,-500.0,0.00012809,2]
[323324431,1713893449308,-773.33,0.00012809,2]
[323324432,1713893449317,-600.36,0.00012809,2]
[323324433,1713893449327,-1125.07,0.00012809,2]
[323324434,1713893449336,-500.0,0.00012809,2]
[323324435,1713893449346,-500.0,0.00012809,2]
[323324436,1713893449355,-598.75187185,0.00012809,2]
[323324437,1713893449365,-500.0,0.00012809,2]
[323324438,1713893449375,-1245.45,0.00012809,2]
[323324439,1713893449384,-526.47,0.00012809,2]
[323324440,1713893449394,-500.0,0.00012809,2]
[323324441,1713893449403,-2124.94,0.00012809,2]
[323324442,1713893449413,-500.0,0.00012809,2]
[323324443,1713893449422,-1934.59,0.00012809,2]
[323324444,1713893449432,-500.0,0.00012809,2]
[323324445,1713893449441,-1157.9,0.00012809,2]
[323324446,1713893449450,-500.0,0.00012809,2]
[323324447,1713893449460,-500.0,0.00012809,2]
[323324448,1713893449469,-275.68,0.00012809,2]
[323324449,1713893449479,-500.0,0.00012809,2]
[323324450,1713893449489,-677.89,0.00012809,2]
[323324451,1713893449498,-1741.31,0.00012809,2]
[323324452,1713893449507,-500.0,0.00012809,2]
[323324453,1713893449516,-500.0,0.00012809,2]
[323324454,1713893449526,-500.0,0.00012809,2]
[323324455,1713893449535,-500.0,0.00012809,2]
[323324456,1713893449544,-500.0,0.00012809,2]
[323324457,1713893449554,-500.0,0.00012809,2]
[323324458,1713893449564,-500.0,0.00012809,2]
[323324459,1713893449573,-970.96,0.00012809,2]
[323324460,1713893449583,-1462.49,0.00012809,2]
[323324461,1713893449592,-695.7,0.00012809,2]
[323324462,1713893449601,-1761.42,0.00012809,2]
[323324463,1713893449610,-787.5,0.00012809,2]
[323324464,1713893449619,-563.4,0.00012809,2]
[323324465,1713893449629,-500.0,0.00012809,2]
[323324466,1713893449638,-546.48,0.00012809,2]
[323324467,1713893449647,-500.0,0.00012809,2]
[323324468,1713893449656,-500.0,0.00012809,2]
[323324469,1713893449666,-696.69,0.00012809,2]
[323324470,1713893449676,-846.72,0.00012809,2]
[323324471,1713893449686,-647.39,0.00012809,2]
[323324472,1713893449695,-500.0,0.00012809,2]
[323324473,1713893449705,-717.97,0.00012809,2]
[323324474,1713893449715,-2975.53,0.00012809,2]
[323324475,1713893449725,-500.0,0.00012809,2]
[323324476,1713893449734,-506.35,0.00012809,2]
[323324477,1713893449744,-500.0,0.00012809,2]
[323324478,1713893449753,-500.0,0.00012809,2]
[323324479,1713893449763,-343.1198557,0.00012809,2]
[323324480,1713893449772,-500.0,0.00012809,2]
[323324481,1713893449782,-679.55,0.00012809,2]
[323324482,1713893449791,-7087.46,0.00012809,2]
[323324483,1713893449801,-631.3,0.00012809,2]
[323324484,1713893449810,-500.0,0.00012809,2]
[323324485,1713893449819,-500.0,0.00012809,2]
[323324486,1713893449829,-553.39,0.00012809,2]
[323324487,1713893449840,-500.0,0.00012811,2]
[323324488,1713893449849,-500.0,0.00012811,2]
[323324489,1713893449859,-186.19933333,0.00012813,2]
[323324490,1713893449868,-500.0,0.00012819,2]
[323324491,1713893449877,-500.0,0.00012819,2]
[323324492,1713893449887,-500.0,0.00012828,2]
[323324493,1713893449896,-500.0,0.00012828,2]
[323324494,1713893449905,-500.0,0.00012837,2]
[323324495,1713893449915,-500.0,0.00012837,2]
[323324496,1713893449925,-1727.0,0.00012849,2]
[323324497,1713893449934,-1000.0,0.00012895,2]
[323324498,1713893449943,-500.0,0.00012895,2]
[323324499,1713893449953,-310.18634512,0.000129,2]
[323324500,1713893449962,-264.76405233,0.000129,2]
[323324501,1713893449972,-1851.18464364,0.000129,2]
[323324502,1713893449984,-725.90498024,0.000129,2]
[323324503,1713893449993,-3334.47698898,0.000129,2]
[323324504,1713893450002,-3334.47698897,0.000129,2]
[323324505,1713893450012,-649.25458927,0.000129,2]
[323324506,1713893450021,-3334.47698897,0.000129,2]
[323324507,1713893450030,-3334.47698897,0.000129,2]
[323324508,1713893450039,-13183.63178861,0.00012919,2]
[323324509,1713893450049,-348.96034067,0.00012945,2]
[323324510,1713893450058,-264.87587186,0.00012978,2]
[323324511,1713893450068,-27811.15997715,0.00012999,2]
[323324512,1713893450084,-353.72775362,0.00012999,2]
[323324513,1713893450098,-823.29,0.00012999,2]
[323324514,1713893450553,1002.20259546,0.00010866,2]
[323324517,1713893534884,1472.06,9.903e-05,2]
[323324521,1713893835637,176.59,8.829e-05,2]
[323324522,1713894008630,8714.05947489,0.00010955,2]
[323324523,1713894036528,250.0,0.0001073,2]
[323324524,1713894049741,1435.29,8.8e-05,2]
[323324525,1713894051779,217.49,0.00010718,2]
[323324526,1713894077412,2450.75,0.00010709,2]
[323324527,1713894168877,1220.67551642,0.00011,2]
[323324528,1713894177075,150.0,0.00010761,2]
[323324529,1713894178172,163.17,0.00010761,2]
[323324530,1713894231908,2000.0,0.00010959,3]
[323324531,1713894266582,16814.06,0.00010812,2]
[323324532,1713894269382,851.66,0.00010905,2]
[323324533,1713894272406,966.77,0.00010709,2]
[323324534,1713894317269,1577.21,0.00010937,2]
[323324535,1713894318390,200.0,0.00010709,2]
[323324536,1713894345690,487.3,0.00010917,2]
[323324539,1713894470698,2345.6288,0.0001096,2]
[323324540,1713894510276,174.23,0.00010865,2]
[323324541,1713894527074,34.45480832,0.00010865,2]
[323324542,1713894527095,150.0,0.00010865,2]
[323324543,1713894527120,5.73519168,0.00010865,2]
[323324544,1713894534864,1434.91,9.078e-05,2]
[323324545,1713894544697,1004.16,0.00010868,2]
[323324550,1713894549088,208.68480832,9.078e-05,2]
[323324551,1713894555186,1633.5,0.00010983,2]
[323324555,1713894626684,174.24573508,0.00010939,2]
[323324559,1713894632339,-265.47853017,0.00011034,2]
[323324560,1713894632348,-404.97366002,0.00011039,2]
[323324561,1713894632357,-159.52,0.00011047,2]
[323324562,1713894632366,-159.52,0.00011095,2]
[323324563,1713894632375,-159.52,0.00011143,2]
[323324564,1713894632384,-159.52,0.00011191,2]
[323324565,1713894632393,-165.17,0.00011208,2]
[323324566,1713894632402,-250.0,0.00011221,2]
[323324567,1713894632411,-113.00631822,0.00011221,2]
[323324568,1713894632423,-1678.68368178,0.00011221,2]
[323324569,1713894632434,-224.99,0.00011235,2]
[323324570,1713894632445,-150.0,0.00011238,2]
[323324571,1713894632459,-159.52,0.00011239,2]
[323324572,1713894632468,-8381.6472,0.00011239,2]
[323324573,1713894632478,-150.99,0.00011239,2]
[323324574,1713894632487,-1134.0589799,0.00011239,2]
[323324575,1713894632498,-159.52,0.00011287,2]
[323324576,1713894632507,-159.52,0.00011335,2]
[323324577,1713894632516,-1434.91,0.00011342,2]
[323324578,1713894632526,-159.52,0.00011383,2]
[323324579,1713894632536,-159.52,0.00011431,2]
[323324580,1713894632545,-5089.0625705,0.00011438,2]
[323324581,1713894632554,-499.99,0.00011438,2]
[323324582,1713894632563,-500.0,0.00011439,2]
[323324583,1713894632572,-500.0,0.00011439,2]
[323324584,1713894632582,-500.0,0.00011439,2]
[323324585,1713894632591,-500.0,0.00011439,2]
[323324586,1713894632600,-500.0,0.00011439,2]
[323324587,1713894632609,-500.0,0.00011439,2]
[323324588,1713894632619,-500.0,0.00011439,2]
[323324589,1713894632628,-500.0,0.00011439,2]
[323324590,1713894632638,-159.52,0.00011479,2]
[323324591,1713894632647,-220.96220675,0.0001152,2]
[323324592,1713894632676,-659.03779325,0.0001152,2]
[323324593,1713894632687,-90.52220675,0.00011523,2]
[323324594,1713894632719,-155.79698494,0.00011523,2]
[323324595,1713894632728,-155.30252456,0.00011523,2]
[323324596,1713894632738,-76.90049046,0.00011527,2]
[323324597,1713894632753,-82.61950954,0.00011527,2]
[323324598,1713894632762,-159.52,0.00011575,2]
[323324599,1713894632772,-159.52,0.00011623,2]
[323324600,1713894632781,-500.0,0.00011713,2]
[323324601,1713894632790,-500.0,0.00011713,2]
[323324602,1713894632799,-500.0,0.00011713,2]
[323324603,1713894632808,-500.0,0.00011713,2]
[323324604,1713894632818,-500.0,0.00011713,2]
[323324605,1713894632827,-500.0,0.00011713,2]
[323324606,1713894632838,-500.0,0.00011713,2]
[323324607,1713894632850,-500.0,0.00011713,2]
[323324608,1713894632860,-155.56460516,0.0001173,2]
[323324609,1713894632870,-358.48576608,0.00011731,2]
[323324610,1713894632879,-1999.1162,0.00011884,2]
[323324611,1713894632888,-8447.3306,0.00011886,2]
[323324612,1713894632898,-1000.0,0.00011904,2]
[323324613,1713894632907,-489.57153886,0.00011987,2]
[323324614,1713894632916,-500.0,0.00011987,2]
[323324615,1713894632925,-500.0,0.00011987,2]
[323324616,1713894632937,-500.0,0.00011987,2]
[323324617,1713894632946,-500.0,0.00011987,2]
[323324618,1713894632955,-517.43270162,0.00011987,2]
[323324619,1713894632964,-500.0,0.00011987,2]
[323324620,1713894632974,-500.0,0.00011987,2]
[323324621,1713894632983,-217.49,0.00012058,2]
[323324622,1713894632992,-2295.441,0.00012161,2]
[323324623,1713894633001,-300.0,0.000122,4]
[323324624,1713894633011,-601.55290354,0.00012257,2]
[323324625,1713894633246,-475.27970975,0.00012257,2]
[323324626,1713894633259,-24.72029025,0.00012257,2]
[323324627,1713894633269,-471.62634275,0.00012257,2]
[323324628,1713894633281,-28.37365725,0.00012257,2]
[323324629,1713894633290,-500.0,0.00012257,2]
[323324630,1713894633299,-201.9817053,0.00012257,2]
[323324649,1713894638281,-749.48014976,0.00011033,2]
[323324650,1713894638290,-298.0182947,0.00012257,2]
[323324651,1713894638300,-500.0,0.00012257,2]
[323324652,1713894638309,-500.0,0.00012257,2]
[323324654,1713894638319,-500.0,0.00012257,2]
[323324655,1713894638328,-500.0,0.00012257,2]
[323324656,1713894638338,-500.0,0.00012257,2]
[323324657,1713894638347,-500.0,0.00012257,2]
[323324658,1713894638358,-500.0,0.00012257,2]
[323324659,1713894638367,-500.0,0.00012257,2]
[323324660,1713894638377,-500.0,0.00012257,2]
[323324661,1713894638387,-500.0,0.00012257,2]
[323324662,1713894638397,-500.0,0.00012257,2]
[323324663,1713894638407,-500.0,0.00012257,2]
[323324664,1713894638416,-500.0,0.00012257,2]
[323324665,1713894638426,-500.0,0.00012257,2]
[323324666,1713894638436,-758.95,0.00012257,2]
[323324667,1713894638446,-500.0,0.00012257,2]
[323324668,1713894638458,-517.40522426,0.00012257,2]
[323324669,1713894638467,-500.0,0.00012257,2]
[323324670,1713894638477,-500.0,0.00012257,2]
[323324671,1713894638487,-500.0,0.00012257,2]
[323324672,1713894638497,-747.38,0.00012257,2]
[323324673,1713894638507,-585.68,0.00012257,2]
[323324674,1713894638516,-1822.55,0.00012257,2]
[323324675,1713894638526,-500.0,0.00012257,2]
[323324676,1713894638537,-868.42,0.00012257,2]
[323324677,1713894638546,-1450.95,0.00012257,2]
[323324678,1713894638556,-500.0,0.00012257,2]
[323324679,1713894638565,-500.0,0.00012257,2]
[323324680,1713894638575,-500.0,0.00012257,2]
[323324681,1713894638584,-500.0,0.00012257,2]
[323324682,1713894638593,-500.0,0.00012257,2]
[323324683,1713894638603,-500.0,0.00012257,2]
[323324684,1713894638612,-795.38,0.00012257,2]
[323324685,1713894638621,-500.0,0.00012257,2]
[323324686,1713894638632,-500.0,0.0001226,2]
[323324687,1713894638641,-500.0,0.0001226,2]
[323324688,1713894638650,-500.0,0.0001226,2]
[323324689,1713894638659,-500.0,0.0001226,2]
[323324690,1713894638669,-527.64,0.0001226,2]
[323324691,1713894638678,-580.0,0.0001226,2]
[323324692,1713894638692,-500.0,0.0001226,2]
[323324693,1713894638701,-500.0,0.0001226,2]
[323324694,1713894638710,-500.0,0.0001226,2]